[Event "Early-Titled-Tuesday-Blitz-October-03-2023"]
[Site "Chess.com"]
[Date "2023.10.03"]
[Round "1"]
[White "Giorno"]
[Black "K_A_S_T_O_R"]
[Result "0-1"]
[WhiteElo "2494"]
[BlackElo "2902"]
[TimeControl "180+1"]
[EndTime "8:01:57 PDT"]
[Termination "K_A_S_T_O_R won by resignation"]

1. Nf3 {[%clk 0:02:59.6]} 1... c5 {[%clk 0:02:58.4]} 2. c4 {[%clk 0:02:58.3]}
2... Nf6 {[%clk 0:02:56]} 3. d4 {[%clk 0:02:58.4]} 3... cxd4 {[%clk 0:02:54.9]}
4. Nxd4 {[%clk 0:02:59.3]} 4... b6 {[%clk 0:02:54.7]} 5. Nc3 {[%clk 0:02:56.9]}
5... Bb7 {[%clk 0:02:55.1]} 6. f3 {[%clk 0:02:56.6]} 6... d6 {[%clk 0:02:51.3]}
7. e4 {[%clk 0:02:56.3]} 7... e6 {[%clk 0:02:51.8]} 8. Be3 {[%clk 0:02:56.4]}
8... Be7 {[%clk 0:02:52.4]} 9. Be2 {[%clk 0:02:56.9]} 9... O-O {[%clk 0:02:53]}
10. O-O {[%clk 0:02:57.5]} 10... Nc6 {[%clk 0:02:53.3]} 11. Qd2 {[%clk
0:02:57.5]} 11... Qd7 {[%clk 0:02:53.6]} 12. Rfd1 {[%clk 0:02:53.8]} 12... Rfd8
{[%clk 0:02:54]} 13. b3 {[%clk 0:02:53.4]} 13... Rac8 {[%clk 0:02:54.1]} 14. a4
{[%clk 0:02:52.2]} 14... Ba8 {[%clk 0:02:51.3]} 15. Nxc6 {[%clk 0:02:44.4]}
15... Bxc6 {[%clk 0:02:51.2]} 16. a5 {[%clk 0:02:44.6]} 16... Qc7 {[%clk
0:02:36.9]} 17. axb6 {[%clk 0:02:38.5]} 17... axb6 {[%clk 0:02:37.3]} 18. Ra7
{[%clk 0:02:24.6]} 18... Qxa7 {[%clk 0:02:35.2]} 0-1

[Event "Early-Titled-Tuesday-Blitz-October-03-2023"]
[Site "Chess.com"]
[Date "2023.10.03"]
[Round "1"]
[White "Shivananda1964"]
[Black "JoakimVonAnd"]
[Result "0-1"]
[WhiteElo "2422"]
[BlackElo "2747"]
[TimeControl "180+1"]
[EndTime "8:02:09 PDT"]
[Termination "JoakimVonAnd won by resignation"]

1. e4 {[%clk 0:02:59.7]} 1... g6 {[%clk 0:02:59.3]} 2. d4 {[%clk 0:02:59.3]}
2... Bg7 {[%clk 0:02:59.2]} 3. Nc3 {[%clk 0:02:58]} 3... a6 {[%clk 0:02:59.6]}
4. a4 {[%clk 0:02:55.3]} 4... c6 {[%clk 0:02:56]} 5. Bc4 {[%clk 0:02:34.5]} 5...
d5 {[%clk 0:02:39.2]} 6. exd5 {[%clk 0:02:32.1]} 6... cxd5 {[%clk 0:02:40.1]} 7.
Nxd5 {[%clk 0:02:12.4]} 7... e6 {[%clk 0:02:37.4]} 8. Ne3 {[%clk 0:02:07.7]}
8... Qxd4 {[%clk 0:02:34.8]} 9. Qxd4 {[%clk 0:02:03.2]} 9... Bxd4 {[%clk
0:02:35.7]} 10. Nf3 {[%clk 0:02:03.5]} 10... Bg7 {[%clk 0:02:35.9]} 0-1

[Event "Early-Titled-Tuesday-Blitz-October-03-2023"]
[Site "Chess.com"]
[Date "2023.10.03"]
[Round "1"]
[White "Indianlad"]
[Black "AleksanderHnydiuk"]
[Result "1-0"]
[WhiteElo "3032"]
[BlackElo "2511"]
[TimeControl "180+1"]
[EndTime "8:02:29 PDT"]
[Termination "Indianlad won by resignation"]

1. Nc3 {[%clk 0:02:58.3]} 1... d5 {[%clk 0:02:44.9]} 2. e4 {[%clk 0:02:56.5]}
2... d4 {[%clk 0:02:45]} 3. Nce2 {[%clk 0:02:56.1]} 3... e5 {[%clk 0:02:45.6]}
4. d3 {[%clk 0:02:55.6]} 4... c5 {[%clk 0:02:43.2]} 5. f4 {[%clk 0:02:53.9]}
5... Nc6 {[%clk 0:02:43.3]} 6. Nf3 {[%clk 0:02:52.9]} 6... Bd6 {[%clk
0:02:42.5]} 7. g3 {[%clk 0:02:52.4]} 7... f5 {[%clk 0:02:38.5]} 8. exf5 {[%clk
0:02:46.7]} 8... Bxf5 {[%clk 0:02:37.4]} 9. Bg2 {[%clk 0:02:47.3]} 9... Nf6
{[%clk 0:02:32.3]} 10. O-O {[%clk 0:02:47.2]} 10... e4 {[%clk 0:02:22.2]} 11.
Nh4 {[%clk 0:02:45.9]} 11... Qd7 {[%clk 0:02:21.2]} 12. Nxf5 {[%clk 0:02:43.3]}
12... Qxf5 {[%clk 0:02:22.1]} 13. dxe4 {[%clk 0:02:42.7]} 1-0

[Event "Early-Titled-Tuesday-Blitz-October-03-2023"]
[Site "Chess.com"]
[Date "2023.10.03"]
[Round "1"]
[White "komogro"]
[Black "remi04"]
[Result "0-1"]
[WhiteElo "2489"]
[BlackElo "2879"]
[TimeControl "180+1"]
[EndTime "8:02:42 PDT"]
[Termination "remi04 won by resignation"]

1. Nf3 {[%clk 0:03:00]} 1... d5 {[%clk 0:03:00]} 2. g3 {[%clk 0:03:00.9]} 2...
g6 {[%clk 0:03:00.2]} 3. Bg2 {[%clk 0:03:01.8]} 3... Bg7 {[%clk 0:03:00.8]} 4.
O-O {[%clk 0:03:02.7]} 4... e5 {[%clk 0:03:00.7]} 5. d3 {[%clk 0:03:03.6]} 5...
Ne7 {[%clk 0:03:01]} 6. Nbd2 {[%clk 0:03:04.3]} 6... O-O {[%clk 0:03:01.1]} 7.
e4 {[%clk 0:03:04.3]} 7... Nbc6 {[%clk 0:03:00.2]} 8. c3 {[%clk 0:03:04.6]} 8...
h6 {[%clk 0:02:58.5]} 9. Re1 {[%clk 0:03:04.3]} 9... Re8 {[%clk 0:02:58.1]} 10.
exd5 {[%clk 0:03:02.7]} 10... Nxd5 {[%clk 0:02:58]} 11. Nc4 {[%clk 0:03:03.6]}
11... Bf5 {[%clk 0:02:52.6]} 12. a4 {[%clk 0:03:02.9]} 12... Qd7 {[%clk
0:02:48.2]} 13. a5 {[%clk 0:03:02.3]} 13... Rad8 {[%clk 0:02:45.4]} 14. Be3
{[%clk 0:03:00.3]} 14... Nxe3 {[%clk 0:02:39.6]} 15. Rxe3 {[%clk 0:03:01.2]}
15... Bxd3 {[%clk 0:02:36.8]} 16. Qb3 {[%clk 0:02:37.1]} 16... Qe6 {[%clk
0:02:17.9]} 17. Nfd2 {[%clk 0:02:30.6]} 17... Ne7 {[%clk 0:02:06.9]} 18. Rae1
{[%clk 0:02:28.9]} 18... Nf5 {[%clk 0:02:03.5]} 0-1

[Event "Early-Titled-Tuesday-Blitz-October-03-2023"]
[Site "Chess.com"]
[Date "2023.10.03"]
[Round "1"]
[White "Martial2008"]
[Black "cristiano78"]
[Result "1-0"]
[WhiteElo "2598"]
[BlackElo "2252"]
[TimeControl "180+1"]
[EndTime "8:02:43 PDT"]
[Termination "Martial2008 won by resignation"]

1. d4 {[%clk 0:03:00.9]} 1... Nf6 {[%clk 0:02:59]} 2. Nf3 {[%clk 0:03:00.5]}
2... g6 {[%clk 0:02:58.6]} 3. Bg5 {[%clk 0:02:59.6]} 3... Bg7 {[%clk 0:02:58.4]}
4. Nbd2 {[%clk 0:02:57.1]} 4... h6 {[%clk 0:02:57.5]} 5. Bh4 {[%clk 0:02:32.3]}
5... d6 {[%clk 0:02:56.4]} 6. e4 {[%clk 0:02:30.9]} 6... g5 {[%clk 0:02:51.2]}
7. Bg3 {[%clk 0:02:30]} 7... Nh5 {[%clk 0:02:52.1]} 8. c3 {[%clk 0:02:27.1]}
8... Nd7 {[%clk 0:02:51.6]} 9. Bd3 {[%clk 0:02:25.5]} 9... e6 {[%clk 0:02:51.4]}
10. Qe2 {[%clk 0:02:14.4]} 10... Qe7 {[%clk 0:02:50.6]} 11. e5 {[%clk
0:02:11.1]} 11... d5 {[%clk 0:02:49.6]} 12. O-O {[%clk 0:02:01.6]} 12... c5
{[%clk 0:02:47.8]} 13. h3 {[%clk 0:02:01.2]} 13... Nxg3 {[%clk 0:02:44.2]} 14.
fxg3 {[%clk 0:02:02.1]} 14... a6 {[%clk 0:02:42.3]} 15. Nh2 {[%clk 0:01:59.6]}
15... b5 {[%clk 0:02:40.1]} 16. Qh5 {[%clk 0:01:58]} 16... Bb7 {[%clk
0:02:34.8]} 17. Rxf7 {[%clk 0:01:56.6]} 17... Qxf7 {[%clk 0:02:29.4]} 18. Bg6
{[%clk 0:01:54.9]} 1-0

[Event "Early-Titled-Tuesday-Blitz-October-03-2023"]
[Site "Chess.com"]
[Date "2023.10.03"]
[Round "1"]
[White "maurovargas01"]
[Black "Dacean99"]
[Result "0-1"]
[WhiteElo "1907"]
[BlackElo "2523"]
[TimeControl "180+1"]
[EndTime "8:02:50 PDT"]
[Termination "Dacean99 won by resignation"]

1. e4 {[%clk 0:02:57.6]} 1... d6 {[%clk 0:02:56.6]} 2. f4 {[%clk 0:02:46.4]}
2... e5 {[%clk 0:02:54.8]} 3. fxe5 {[%clk 0:02:43.9]} 3... Qh4+ {[%clk
0:02:44.9]} 4. g3 {[%clk 0:02:07.3]} 4... Qxe4+ {[%clk 0:02:36.7]} 5. Qe2 {[%clk
0:02:05.4]} 5... Qxh1 {[%clk 0:02:27.1]} 6. Nf3 {[%clk 0:02:04.2]} 6... Bg4
{[%clk 0:02:22.6]} 7. Kf2 {[%clk 0:01:56.9]} 7... Qxf3+ {[%clk 0:02:21.1]} 8.
Qxf3 {[%clk 0:01:56.6]} 8... Bxf3 {[%clk 0:02:22]} 9. Kxf3 {[%clk 0:01:57.4]}
9... dxe5 {[%clk 0:02:21.9]} 10. Nc3 {[%clk 0:01:56.9]} 10... Nc6 {[%clk
0:02:21.5]} 11. Bb5 {[%clk 0:01:56.9]} 11... O-O-O {[%clk 0:02:20.6]} 12. d3
{[%clk 0:01:57]} 12... Nd4+ {[%clk 0:02:20.5]} 13. Kf2 {[%clk 0:01:54.3]} 13...
Bc5 {[%clk 0:02:19.1]} 14. Be3 {[%clk 0:01:50.8]} 14... Nf6 {[%clk 0:02:18.5]}
15. Bc4 {[%clk 0:01:49.3]} 15... Ng4+ {[%clk 0:02:17.6]} 0-1

[Event "Early-Titled-Tuesday-Blitz-October-03-2023"]
[Site "Chess.com"]
[Date "2023.10.03"]
[Round "1"]
[White "ContrVersia"]
[Black "Marcin"]
[Result "1-0"]
[WhiteElo "2892"]
[BlackElo "2492"]
[TimeControl "180+1"]
[EndTime "8:03:24 PDT"]
[Termination "ContrVersia won by resignation"]

1. Nf3 {[%clk 0:03:00.9]} 1... g6 {[%clk 0:02:58.7]} 2. c4 {[%clk 0:03:01.4]}
2... Bg7 {[%clk 0:02:58.4]} 3. d4 {[%clk 0:03:02.3]} 3... Nf6 {[%clk 0:02:58.5]}
4. g3 {[%clk 0:03:02.4]} 4... O-O {[%clk 0:02:58.7]} 5. Bg2 {[%clk 0:03:03.1]}
5... d6 {[%clk 0:02:59.3]} 6. O-O {[%clk 0:03:03.2]} 6... c6 {[%clk 0:03:00.1]}
7. Nc3 {[%clk 0:03:03.5]} 7... Qa5 {[%clk 0:03:00.8]} 8. e4 {[%clk 0:03:03.5]}
8... e5 {[%clk 0:03:00.8]} 9. h3 {[%clk 0:03:00.2]} 9... Nbd7 {[%clk 0:03:00.5]}
10. Re1 {[%clk 0:02:57.8]} 10... exd4 {[%clk 0:02:50.6]} 11. Nxd4 {[%clk
0:02:58.7]} 11... Ne5 {[%clk 0:02:51.2]} 12. Bf1 {[%clk 0:02:56.7]} 12... Re8
{[%clk 0:02:48.9]} 13. f4 {[%clk 0:02:47.2]} 13... Ned7 {[%clk 0:02:44]} 14. Nb3
{[%clk 0:02:20.1]} 14... Qc7 {[%clk 0:02:38.3]} 15. Bg2 {[%clk 0:02:17.7]} 15...
a5 {[%clk 0:02:35.9]} 16. Be3 {[%clk 0:02:15]} 16... a4 {[%clk 0:02:35.5]} 17.
Nd4 {[%clk 0:02:15.4]} 17... a3 {[%clk 0:02:34.7]} 18. b3 {[%clk 0:02:15.5]}
18... Nh5 {[%clk 0:02:28.6]} 19. g4 {[%clk 0:02:12.4]} 19... Nhf6 {[%clk
0:02:21.4]} 20. Qc2 {[%clk 0:02:11.9]} 20... Nc5 {[%clk 0:02:20.9]} 21. Rad1
{[%clk 0:02:11]} 21... Bd7 {[%clk 0:02:14.3]} 22. Bf2 {[%clk 0:02:09.5]} 22...
Rad8 {[%clk 0:02:13.7]} 23. Nf3 {[%clk 0:02:09.3]} 23... Bc8 {[%clk 0:02:13.8]}
24. e5 {[%clk 0:02:05.3]} 24... Nfd7 {[%clk 0:01:59.6]} 25. b4 {[%clk
0:01:47.7]} 25... Ne6 {[%clk 0:01:58.9]} 26. exd6 {[%clk 0:01:46.3]} 26... Qb6
{[%clk 0:01:58.9]} 27. Bxb6 {[%clk 0:01:45.9]} 1-0

[Event "Early-Titled-Tuesday-Blitz-October-03-2023"]
[Site "Chess.com"]
[Date "2023.10.03"]
[Round "1"]
[White "YouJustFoundYourGodfather"]
[Black "agustinv04"]
[Result "1-0"]
[WhiteElo "2626"]
[BlackElo "2309"]
[TimeControl "180+1"]
[EndTime "8:03:27 PDT"]
[Termination "YouJustFoundYourGodfather won by resignation"]

1. g3 {[%clk 0:02:58.8]} 1... e5 {[%clk 0:02:52.1]} 2. Bg2 {[%clk 0:02:59.7]}
2... d5 {[%clk 0:02:50]} 3. d3 {[%clk 0:02:59]} 3... Nf6 {[%clk 0:02:48.9]} 4.
Nf3 {[%clk 0:02:58.5]} 4... Nc6 {[%clk 0:02:48]} 5. O-O {[%clk 0:02:58.8]} 5...
g6 {[%clk 0:02:44.8]} 6. Nc3 {[%clk 0:02:58.6]} 6... Bg7 {[%clk 0:02:44]} 7. e4
{[%clk 0:02:55]} 7... dxe4 {[%clk 0:02:33.9]} 8. Nxe4 {[%clk 0:02:50.7]} 8...
Nxe4 {[%clk 0:02:32]} 9. dxe4 {[%clk 0:02:51.6]} 9... O-O {[%clk 0:02:31.9]} 10.
c3 {[%clk 0:02:51.3]} 10... Bg4 {[%clk 0:02:29.8]} 11. Qb3 {[%clk 0:02:50.6]}
11... Qc8 {[%clk 0:02:26]} 12. Be3 {[%clk 0:02:47.3]} 12... b6 {[%clk
0:02:23.8]} 13. Rad1 {[%clk 0:02:39]} 13... Bh3 {[%clk 0:02:22.8]} 14. Bxh3
{[%clk 0:02:26.8]} 14... Qxh3 {[%clk 0:02:23.3]} 15. Qd5 {[%clk 0:02:27.2]}
15... Qh5 {[%clk 0:01:30.4]} 16. Kg2 {[%clk 0:02:19.6]} 16... Nd8 {[%clk
0:01:25.9]} 17. Qxa8 {[%clk 0:02:18.4]} 17... Ne6 {[%clk 0:01:25.2]} 18. Qc6
{[%clk 0:02:08.6]} 18... Nf4+ {[%clk 0:01:25.2]} 19. Bxf4 {[%clk 0:02:07.9]}
19... exf4 {[%clk 0:01:26.1]} 20. Rd5 {[%clk 0:02:04.6]} 1-0

[Event "Early-Titled-Tuesday-Blitz-October-03-2023"]
[Site "Chess.com"]
[Date "2023.10.03"]
[Round "1"]
[White "Eagle_2019"]
[Black "amylazy"]
[Result "1-0"]
[WhiteElo "2674"]
[BlackElo "2371"]
[TimeControl "180+1"]
[EndTime "8:03:34 PDT"]
[Termination "Eagle_2019 won by resignation"]

1. d4 {[%clk 0:03:00.9]} 1... Nf6 {[%clk 0:02:59.3]} 2. Bg5 {[%clk 0:02:59.6]}
2... d5 {[%clk 0:02:59]} 3. Nd2 {[%clk 0:02:58.6]} 3... e6 {[%clk 0:02:58.3]} 4.
e3 {[%clk 0:02:56.9]} 4... Be7 {[%clk 0:02:58]} 5. Bd3 {[%clk 0:02:56.3]} 5...
O-O {[%clk 0:02:57.7]} 6. c3 {[%clk 0:02:54.9]} 6... Nbd7 {[%clk 0:02:51.7]} 7.
f4 {[%clk 0:02:54.3]} 7... c5 {[%clk 0:02:49.7]} 8. Ngf3 {[%clk 0:02:54.1]} 8...
b6 {[%clk 0:02:47.7]} 9. O-O {[%clk 0:02:52.5]} 9... Bb7 {[%clk 0:02:38.2]} 10.
Ne5 {[%clk 0:02:52.1]} 10... Ne4 {[%clk 0:02:32.8]} 11. Bxe7 {[%clk 0:02:46.2]}
11... Qxe7 {[%clk 0:02:30.5]} 12. Nxd7 {[%clk 0:02:43.3]} 12... Qxd7 {[%clk
0:02:29.5]} 13. Bxe4 {[%clk 0:02:39.8]} 13... dxe4 {[%clk 0:02:28.9]} 14. Rf2
{[%clk 0:02:14.7]} 14... f5 {[%clk 0:02:25.6]} 15. Qb3 {[%clk 0:02:11.4]} 15...
Rac8 {[%clk 0:02:20.8]} 16. Nc4 {[%clk 0:01:25.3]} 16... Bd5 {[%clk 0:02:16.9]}
17. Ne5 {[%clk 0:01:20.9]} 17... Qe7 {[%clk 0:02:14.4]} 18. Qa3 {[%clk
0:01:17.7]} 18... cxd4 {[%clk 0:02:08.5]} 19. Qxe7 {[%clk 0:01:16]} 1-0

[Event "Early-Titled-Tuesday-Blitz-October-03-2023"]
[Site "Chess.com"]
[Date "2023.10.03"]
[Round "1"]
[White "ozates"]
[Black "falzehope0"]
[Result "0-1"]
[WhiteElo "2620"]
[BlackElo "2351"]
[TimeControl "180+1"]
[EndTime "8:03:43 PDT"]
[Termination "falzehope0 won by resignation"]

1. e4 {[%clk 0:03:00.9]} 1... d5 {[%clk 0:02:53]} 2. exd5 {[%clk 0:02:59.4]}
2... Nf6 {[%clk 0:02:53.3]} 3. c4 {[%clk 0:02:59.2]} 3... e6 {[%clk 0:02:52.3]}
4. dxe6 {[%clk 0:02:57.7]} 4... Bxe6 {[%clk 0:02:52.6]} 5. d4 {[%clk 0:02:58]}
5... Bb4+ {[%clk 0:02:30.7]} 6. Nc3 {[%clk 0:02:48.9]} 6... Ne4 {[%clk
0:02:27.2]} 7. Qb3 {[%clk 0:02:22.1]} 7... Qxd4 {[%clk 0:01:52.7]} 8. Be3 {[%clk
0:02:05.3]} 8... Bxc3+ {[%clk 0:01:50.5]} 9. bxc3 {[%clk 0:02:03.7]} 9... Qxc3+
{[%clk 0:01:49.9]} 10. Qxc3 {[%clk 0:02:02.9]} 10... Nxc3 {[%clk 0:01:49.5]} 11.
Bd3 {[%clk 0:02:03]} 11... Nc6 {[%clk 0:01:42.1]} 12. Kd2 {[%clk 0:02:02.5]}
12... Na4 {[%clk 0:01:35.6]} 13. Nf3 {[%clk 0:02:00.1]} 13... O-O-O {[%clk
0:01:35]} 14. Ke2 {[%clk 0:01:51.9]} 14... Nc3+ {[%clk 0:01:30.8]} 15. Kd2
{[%clk 0:01:50.7]} 15... Na4 {[%clk 0:01:23.9]} 16. Ke2 {[%clk 0:01:49.7]} 16...
Nb4 {[%clk 0:01:21.1]} 17. Be4 {[%clk 0:01:45.3]} 17... Nc3+ {[%clk 0:01:18.7]}
0-1

[Event "Early-Titled-Tuesday-Blitz-October-03-2023"]
[Site "Chess.com"]
[Date "2023.10.03"]
[Round "1"]
[White "NovikovaGalina"]
[Black "blitzking1729"]
[Result "0-1"]
[WhiteElo "2404"]
[BlackElo "2726"]
[TimeControl "180+1"]
[EndTime "8:04:05 PDT"]
[Termination "blitzking1729 won by resignation"]

1. e4 {[%clk 0:03:00.9]} 1... g6 {[%clk 0:02:56.9]} 2. d4 {[%clk 0:03:00.1]}
2... Bg7 {[%clk 0:02:57]} 3. Nc3 {[%clk 0:03:01]} 3... d6 {[%clk 0:02:57]} 4. f3
{[%clk 0:03:01.5]} 4... Nc6 {[%clk 0:02:50.5]} 5. Be3 {[%clk 0:03:02.1]} 5... e5
{[%clk 0:02:50.3]} 6. Nge2 {[%clk 0:03:02.7]} 6... exd4 {[%clk 0:02:49.5]} 7.
Nxd4 {[%clk 0:03:03.6]} 7... Nf6 {[%clk 0:02:50.4]} 8. Qd2 {[%clk 0:03:02.8]}
8... O-O {[%clk 0:02:50.6]} 9. O-O-O {[%clk 0:03:02.2]} 9... Re8 {[%clk
0:02:47.9]} 10. g4 {[%clk 0:02:58]} 10... d5 {[%clk 0:02:28.5]} 11. g5 {[%clk
0:02:56.8]} 11... Nh5 {[%clk 0:02:25.4]} 12. Nxd5 {[%clk 0:02:50.3]} 12... Nxd4
{[%clk 0:01:59.6]} 13. Bxd4 {[%clk 0:02:50.2]} 13... Bxd4 {[%clk 0:02:00.3]} 14.
Qxd4 {[%clk 0:02:51.1]} 14... Qxg5+ {[%clk 0:02:00.8]} 15. Kb1 {[%clk
0:02:38.6]} 15... Qd8 {[%clk 0:01:59]} 16. Be2 {[%clk 0:01:53.3]} 16... c6
{[%clk 0:01:56.2]} 17. Nc3 {[%clk 0:01:48.3]} 17... Qxd4 {[%clk 0:01:53.2]} 18.
Rxd4 {[%clk 0:01:49.2]} 18... Be6 {[%clk 0:01:52.1]} 19. Rhd1 {[%clk 0:01:47.3]}
19... Nf4 {[%clk 0:01:51.6]} 20. Bc4 {[%clk 0:01:43]} 20... c5 {[%clk
0:01:48.4]} 0-1

[Event "Early-Titled-Tuesday-Blitz-October-03-2023"]
[Site "Chess.com"]
[Date "2023.10.03"]
[Round "1"]
[White "FairChess_on_YouTube"]
[Black "robertoalejandro10"]
[Result "1-0"]
[WhiteElo "3075"]
[BlackElo "2513"]
[TimeControl "180+1"]
[EndTime "8:04:12 PDT"]
[Termination "FairChess_on_YouTube won by resignation"]

1. c4 {[%clk 0:03:00.9]} 1... c5 {[%clk 0:02:58.9]} 2. Nc3 {[%clk 0:02:59.2]}
2... g6 {[%clk 0:02:57]} 3. g3 {[%clk 0:02:58.5]} 3... Bg7 {[%clk 0:02:56.5]} 4.
Bg2 {[%clk 0:02:59]} 4... Nc6 {[%clk 0:02:55.6]} 5. Nf3 {[%clk 0:02:58.3]} 5...
Nf6 {[%clk 0:02:55.7]} 6. O-O {[%clk 0:02:57.6]} 6... O-O {[%clk 0:02:55.7]} 7.
d4 {[%clk 0:02:57.6]} 7... cxd4 {[%clk 0:02:55.9]} 8. Nxd4 {[%clk 0:02:58.5]}
8... d6 {[%clk 0:02:56.1]} 9. Nc2 {[%clk 0:02:52.3]} 9... Be6 {[%clk 0:02:55.6]}
10. b3 {[%clk 0:02:51.9]} 10... Qd7 {[%clk 0:02:55.2]} 11. Bb2 {[%clk
0:02:48.8]} 11... Bh3 {[%clk 0:02:54.9]} 12. Qd2 {[%clk 0:02:44.9]} 12... Bxg2
{[%clk 0:02:52.8]} 13. Kxg2 {[%clk 0:02:45.8]} 13... Rac8 {[%clk 0:02:49.9]} 14.
Rad1 {[%clk 0:02:44.7]} 14... Ne5 {[%clk 0:02:33.9]} 15. Ne3 {[%clk 0:02:37.5]}
15... b6 {[%clk 0:02:29.3]} 16. Ned5 {[%clk 0:02:30.5]} 16... Nxd5 {[%clk
0:02:28.6]} 17. Nxd5 {[%clk 0:02:31.4]} 17... Qb7 {[%clk 0:02:28]} 18. Kg1
{[%clk 0:02:27.6]} 18... Rfd8 {[%clk 0:02:25.9]} 19. f4 {[%clk 0:02:25.2]} 19...
e6 {[%clk 0:02:01.5]} 20. Ne3 {[%clk 0:02:20.9]} 20... Nc6 {[%clk 0:01:58.4]}
21. Bxg7 {[%clk 0:02:15.7]} 21... Kxg7 {[%clk 0:01:59.3]} 22. Qb2+ {[%clk
0:02:07.3]} 22... Kg8 {[%clk 0:01:54.5]} 23. Ng4 {[%clk 0:02:05.9]} 23... e5
{[%clk 0:01:45.9]} 24. fxe5 {[%clk 0:01:56.3]} 24... Nxe5 {[%clk 0:01:43.3]} 25.
Nh6+ {[%clk 0:01:55.5]} 25... Kf8 {[%clk 0:01:36.7]} 26. Nxf7 {[%clk 0:01:52.8]}
26... Nxf7 {[%clk 0:01:20.4]} 27. Qh8+ {[%clk 0:01:51.7]} 27... Ke7 {[%clk
0:01:16.5]} 28. Rxf7+ {[%clk 0:01:52.1]} 1-0

[Event "Early-Titled-Tuesday-Blitz-October-03-2023"]
[Site "Chess.com"]
[Date "2023.10.03"]
[Round "1"]
[White "Mops_2004"]
[Black "ChainedDowntohell"]
[Result "1-0"]
[WhiteElo "2807"]
[BlackElo "2455"]
[TimeControl "180+1"]
[EndTime "8:04:29 PDT"]
[Termination "Mops_2004 won by resignation"]

1. g3 {[%clk 0:03:00.9]} 1... Nf6 {[%clk 0:02:53.9]} 2. Bg2 {[%clk 0:03:01.1]}
2... e5 {[%clk 0:02:53.6]} 3. c4 {[%clk 0:03:00.9]} 3... d5 {[%clk 0:02:48.7]}
4. cxd5 {[%clk 0:03:00.3]} 4... c6 {[%clk 0:02:48.8]} 5. dxc6 {[%clk 0:02:59]}
5... Nxc6 {[%clk 0:02:48.3]} 6. Nc3 {[%clk 0:02:59]} 6... Bc5 {[%clk 0:02:42]}
7. d3 {[%clk 0:02:52.8]} 7... Bf5 {[%clk 0:02:29.7]} 8. Nf3 {[%clk 0:02:51.4]}
8... Qe7 {[%clk 0:02:18.4]} 9. Bg5 {[%clk 0:02:47.9]} 9... Rd8 {[%clk
0:02:07.6]} 10. Qa4 {[%clk 0:02:45]} 10... O-O {[%clk 0:01:58.2]} 11. Qh4 {[%clk
0:02:43.4]} 11... Nd4 {[%clk 0:01:34.4]} 12. O-O {[%clk 0:02:38]} 12... Bb6
{[%clk 0:01:18.5]} 13. Nxd4 {[%clk 0:02:26.8]} 13... Rxd4 {[%clk 0:01:16.9]} 14.
Ne4 {[%clk 0:02:26.7]} 14... Bd8 {[%clk 0:00:52.9]} 15. Rac1 {[%clk 0:02:11.5]}
15... Re8 {[%clk 0:00:46.5]} 16. Be3 {[%clk 0:01:59.4]} 16... Ra4 {[%clk
0:00:42.1]} 17. Nxf6+ {[%clk 0:01:59.2]} 17... gxf6 {[%clk 0:00:34.8]} 18. Qxa4
{[%clk 0:02:00.1]} 18... a6 {[%clk 0:00:33]} 19. Bc5 {[%clk 0:01:58.4]} 19...
Qe6 {[%clk 0:00:28.5]} 20. Bd5 {[%clk 0:01:57.2]} 1-0

[Event "Early-Titled-Tuesday-Blitz-October-03-2023"]
[Site "Chess.com"]
[Date "2023.10.03"]
[Round "1"]
[White "larsmandreassen"]
[Black "ArmanGhevondyanchess"]
[Result "0-1"]
[WhiteElo "2207"]
[BlackElo "2567"]
[TimeControl "180+1"]
[EndTime "8:04:43 PDT"]
[Termination "ArmanGhevondyanchess won by checkmate"]

1. d4 {[%clk 0:03:00.4]} 1... Nf6 {[%clk 0:02:59.8]} 2. Nf3 {[%clk 0:02:59.9]}
2... g6 {[%clk 0:02:59.8]} 3. Bg5 {[%clk 0:03:00.3]} 3... Bg7 {[%clk 0:02:59.8]}
4. Nc3 {[%clk 0:03:00.9]} 4... d5 {[%clk 0:02:59.9]} 5. Bxf6 {[%clk 0:03:00.6]}
5... Bxf6 {[%clk 0:02:59.9]} 6. e4 {[%clk 0:03:01]} 6... dxe4 {[%clk 0:03:00.8]}
7. Nxe4 {[%clk 0:03:01.5]} 7... Bg7 {[%clk 0:03:01.4]} 8. Bc4 {[%clk 0:03:02.2]}
8... O-O {[%clk 0:03:01.6]} 9. O-O {[%clk 0:03:01.8]} 9... b6 {[%clk 0:03:01.4]}
10. Re1 {[%clk 0:03:00.7]} 10... Bb7 {[%clk 0:03:01.5]} 11. c3 {[%clk
0:03:00.9]} 11... Nd7 {[%clk 0:03:01.6]} 12. Qe2 {[%clk 0:03:01.1]} 12... e6
{[%clk 0:02:54.6]} 13. Rad1 {[%clk 0:03:00.5]} 13... Nf6 {[%clk 0:02:53.2]} 14.
Nxf6+ {[%clk 0:02:59.2]} 14... Qxf6 {[%clk 0:02:50.1]} 15. Ne5 {[%clk
0:02:59.2]} 15... Rad8 {[%clk 0:02:46.5]} 16. f3 {[%clk 0:02:54]} 16... Rd6
{[%clk 0:02:39.7]} 17. a4 {[%clk 0:02:39.5]} 17... Rfd8 {[%clk 0:02:36.9]} 18.
g3 {[%clk 0:02:30.1]} 18... c5 {[%clk 0:02:36.9]} 19. Ng4 {[%clk 0:02:08.9]}
19... Qe7 {[%clk 0:02:33.8]} 20. dxc5 {[%clk 0:02:04.2]} 20... Rxd1 {[%clk
0:02:32.9]} 21. Rxd1 {[%clk 0:02:04.5]} 21... Rxd1+ {[%clk 0:02:31]} 22. Qxd1
{[%clk 0:02:05.4]} 22... Qxc5+ {[%clk 0:02:31.3]} 23. Kg2 {[%clk 0:02:03]} 23...
Qxc4 {[%clk 0:02:28.1]} 24. Qd8+ {[%clk 0:02:03]} 24... Bf8 {[%clk 0:02:27.9]}
25. Nf6+ {[%clk 0:02:03.6]} 25... Kg7 {[%clk 0:02:27.5]} 26. Ne8+ {[%clk
0:01:34.2]} 26... Kh6 {[%clk 0:02:25]} 27. Nf6 {[%clk 0:01:23.1]} 27... Qe2+
{[%clk 0:02:01.8]} 28. Kh3 {[%clk 0:01:22.4]} 28... Qf1+ {[%clk 0:01:57.1]} 29.
Kg4 {[%clk 0:01:11.4]} 29... Bxf3+ {[%clk 0:01:49.6]} 30. Kf4 {[%clk 0:01:07.1]}
30... Bd1+ {[%clk 0:01:42.2]} 31. Ke3 {[%clk 0:01:03.1]} 31... Qe2+ {[%clk
0:01:39.6]} 32. Kf4 {[%clk 0:01:00.9]} 32... g5# {[%clk 0:01:37.1]} 0-1